[Event "Titled Tuesday Blitz November 2 2021"]
[White "Djordjevic, Vuk"]
[Black "Weetik, Vjacheslav"]
[WhiteFideId "902098"]
[BlackFideId "4153472"]
[WhiteElo "2463"]
[BlackElo "2469"]
[Result "1-0"]
[Round "11"]
[TimeControl "180+1"]
[Date "2021.11.02"]
[WhiteClock "0:00:48"]
[BlackClock "0:00:07"]

1. e4 {[%clk 0:03:00]}  c6 {[%clk 0:02:30]} 2. d4 {[%clk 0:03:00]}  d5 {[%clk 0:02:30]} 3. Nd2 {[%clk 0:03:00]}  dxe4 {[%clk 0:02:31]} 4. Nxe4 {[%clk 0:03:01]}  Nf6 {[%clk 0:02:31]} 5. Nxf6+ {[%clk 0:03:02]}  exf6 {[%clk 0:02:32]} 6. c3 {[%clk 0:03:02]}  Bd6 {[%clk 0:02:33]} 7. Bd3 {[%clk 0:03:03]}  O-O {[%clk 0:02:33]} 8. Qc2 {[%clk 0:03:03]}  Re8+ {[%clk 0:02:34]} 9. Ne2 {[%clk 0:03:04]}  h5 {[%clk 0:02:35]} 10. Be3 {[%clk 0:03:03]}  Nd7 {[%clk 0:02:35]} 11. O-O-O {[%clk 0:03:02]}  Nf8 {[%clk 0:02:35]} 12. h3 {[%clk 0:02:57]}  Be6 {[%clk 0:02:33]} 13. c4 {[%clk 0:02:55]}  Rc8 {[%clk 0:02:31]} 14. Kb1 {[%clk 0:02:55]}  b5 {[%clk 0:02:30]} 15. c5 {[%clk 0:02:53]}  Bb8 {[%clk 0:02:29]} 16. Nf4 {[%clk 0:02:51]}  Bxf4 {[%clk 0:02:25]} 17. Bxf4 {[%clk 0:02:51]}  Qd5 {[%clk 0:02:11]} 18. b3 {[%clk 0:02:50]}  Ng6 {[%clk 0:02:05]} 19. Be4 {[%clk 0:02:48]}  Qd7 {[%clk 0:01:33]} 20. Bd6 {[%clk 0:02:46]}  Ne7 {[%clk 0:01:31]} 21. g4 {[%clk 0:02:42]}  Bd5 {[%clk 0:01:24]} 22. f3 {[%clk 0:02:36]}  h4 {[%clk 0:00:58]} 23. Rde1 {[%clk 0:02:26]}  Rcd8 {[%clk 0:00:51]} 24. Re2 {[%clk 0:02:20]}  Bxe4 {[%clk 0:00:49]} 25. fxe4 {[%clk 0:02:18]}  Nc8 {[%clk 0:00:46]} 26. e5 {[%clk 0:02:18]}  Nxd6 {[%clk 0:00:40]} 27. cxd6 {[%clk 0:02:12]}  Re6 {[%clk 0:00:24]} 28. Rhe1 {[%clk 0:02:03]}  Qb7 {[%clk 0:00:18]} 29. g5 {[%clk 0:02:00]}  fxe5 {[%clk 0:00:13]} 30. dxe5 {[%clk 0:01:59]}  c5 {[%clk 0:00:10]} 31. Re4 {[%clk 0:01:54]}  c4 {[%clk 0:00:09]} 32. Rxh4 {[%clk 0:01:54]}  g6 {[%clk 0:00:09]} 33. Rf4 {[%clk 0:01:32]}  Rdxd6 {[%clk 0:00:08]} 34. Qc3 {[%clk 0:01:05]}  Rd3 {[%clk 0:00:08]} 35. Qc2 {[%clk 0:01:04]}  Qd5 {[%clk 0:00:08]} 36. bxc4 {[%clk 0:01:01]}  bxc4 {[%clk 0:00:08]} 37. Qxc4 {[%clk 0:00:55]}  Rd1+ {[%clk 0:00:06]} 38. Rxd1 {[%clk 0:00:55]}  Qxd1+ {[%clk 0:00:06]} 39. Kb2 {[%clk 0:00:55]}  Rb6+ {[%clk 0:00:07]} 40. Ka3 {[%clk 0:00:49]}  Qd2 {[%clk 0:00:07]} 41. Qxf7+ {[%clk 0:00:48]} 1-0


[Site "https://www.chess.com"]

[Event "Titled Tuesday Blitz November 2 2021"]
[White "Gelman, Alexander"]
[Black "Lazavik, Denis"]
[WhiteFideId "4118316"]
[BlackFideId "13515110"]
[WhiteElo "2375"]
[BlackElo "2436"]
[Result "0-1"]
[Round "11"]
[TimeControl "180+1"]
[Date "2021.11.02"]
[WhiteClock "0:00:03"]
[BlackClock "0:00:02"]

1. d4 {[%clk 0:02:36]}  Nf6 {[%clk 0:02:54]} 2. Nc3 {[%clk 0:02:36]}  d5 {[%clk 0:02:54]} 3. Bf4 {[%clk 0:02:36]}  c5 {[%clk 0:02:53]} 4. e3 {[%clk 0:02:37]}  cxd4 {[%clk 0:02:53]} 5. exd4 {[%clk 0:02:37]}  Bg4 {[%clk 0:02:53]} 6. f3 {[%clk 0:02:37]}  Bd7 {[%clk 0:02:54]} 7. Qd2 {[%clk 0:02:38]}  e6 {[%clk 0:02:53]} 8. g4 {[%clk 0:02:38]}  Qb6 {[%clk 0:02:52]} 9. Nge2 {[%clk 0:02:32]}  Nc6 {[%clk 0:02:43]} 10. h4 {[%clk 0:02:30]}  Rc8 {[%clk 0:02:39]} 11. h5 {[%clk 0:02:16]}  h6 {[%clk 0:02:38]} 12. Nd1 {[%clk 0:02:08]}  Na5 {[%clk 0:02:36]} 13. b3 {[%clk 0:02:05]}  Bb5 {[%clk 0:02:26]} 14. c3 {[%clk 0:02:02]}  Nc6 {[%clk 0:02:00]} 15. Ne3 {[%clk 0:01:56]}  Be7 {[%clk 0:01:48]} 16. Kf2 {[%clk 0:01:53]}  Nd7 {[%clk 0:01:45]} 17. Kg2 {[%clk 0:01:43]}  O-O {[%clk 0:01:40]} 18. Re1 {[%clk 0:01:38]}  Rfd8 {[%clk 0:01:38]} 19. Bg3 {[%clk 0:01:33]}  Qa5 {[%clk 0:01:32]} 20. Nf4 {[%clk 0:01:32]}  Bxf1+ {[%clk 0:01:30]} 21. Rhxf1 {[%clk 0:01:32]}  Bg5 {[%clk 0:01:22]} 22. Re2 {[%clk 0:01:17]}  Nf6 {[%clk 0:01:15]} 23. Nh3 {[%clk 0:01:06]}  Bxe3 {[%clk 0:01:08]} 24. Qxe3 {[%clk 0:01:07]}  Re8 {[%clk 0:00:59]} 25. Bh4 {[%clk 0:00:56]}  e5 {[%clk 0:00:47]} 26. Bxf6 {[%clk 0:00:56]}  gxf6 {[%clk 0:00:33]} 27. Qxh6 {[%clk 0:00:53]}  exd4 {[%clk 0:00:34]} 28. Rxe8+ {[%clk 0:00:46]}  Rxe8 {[%clk 0:00:35]} 29. Qxf6 {[%clk 0:00:41]}  Qxc3 {[%clk 0:00:34]} 30. Rf2 {[%clk 0:00:34]}  Re6 {[%clk 0:00:18]} 31. Qf5 {[%clk 0:00:29]}  d3 {[%clk 0:00:15]} 32. Ng5 {[%clk 0:00:29]}  Rf6 {[%clk 0:00:15]} 33. Qh7+ {[%clk 0:00:27]}  Kf8 {[%clk 0:00:15]} 34. h6 {[%clk 0:00:15]}  d2 {[%clk 0:00:10]} 35. Qg7+ {[%clk 0:00:15]}  Ke7 {[%clk 0:00:10]} 36. h7 {[%clk 0:00:15]}  d1=Q {[%clk 0:00:09]} 37. h8=Q {[%clk 0:00:16]}  Qe5 {[%clk 0:00:04]} 38. Nxf7 {[%clk 0:00:05]}  Rxf7 {[%clk 0:00:04]} 39. Qxe5+ {[%clk 0:00:04]}  Nxe5 {[%clk 0:00:05]} 40. Qxe5+ {[%clk 0:00:05]}  Kd7 {[%clk 0:00:06]} 41. g5 {[%clk 0:00:05]}  Qd3 {[%clk 0:00:06]} 42. f4 {[%clk 0:00:04]}  Re7 {[%clk 0:00:05]} 43. Qf6 {[%clk 0:00:03]}  Re3 {[%clk 0:00:05]} 44. Qh6 {[%clk 0:00:02]}  Rg3+ {[%clk 0:00:04]} 45. Kh2 {[%clk 0:00:02]}  Re3 {[%clk 0:00:03]} 46. g6 {[%clk 0:00:02]}  Re6 {[%clk 0:00:02]} 47. Qh3 {[%clk 0:00:02]}  Qd4 {[%clk 0:00:01]} 48. f5 {[%clk 0:00:02]}  Qxf2+ {[%clk 0:00:01]} 49. Qg2 {[%clk 0:00:02]}  Qh4+ {[%clk 0:00:02]} 50. Qh3 {[%clk 0:00:02]}  Re2+ {[%clk 0:00:02]} 51. Kg1 {[%clk 0:00:03]}  Qxh3 {[%clk 0:00:02]} 0-1


[Site "https://www.chess.com"]

[Event "Titled Tuesday Blitz November 2 2021"]
[White "Goltseva, Ekaterina"]
[Black "Rychagov, Andrey"]
[WhiteFideId "24173770"]
[BlackFideId "4119932"]
[WhiteElo "2059"]
[BlackElo "2500"]
[Result "0-1"]
[Round "11"]
[TimeControl "180+1"]
[Date "2021.11.02"]
[WhiteClock "0:00:17"]
[BlackClock "0:01:33"]

1. d4 {[%clk 0:02:57]}  f5 {[%clk 0:02:59]} 2. c4 {[%clk 0:02:56]}  Nf6 {[%clk 0:02:59]} 3. Nc3 {[%clk 0:02:56]}  e6 {[%clk 0:02:59]} 4. Qc2 {[%clk 0:02:56]}  Bb4 {[%clk 0:02:58]} 5. Bd2 {[%clk 0:02:53]}  O-O {[%clk 0:02:58]} 6. e3 {[%clk 0:02:52]}  d6 {[%clk 0:02:53]} 7. Bd3 {[%clk 0:02:50]}  Qe7 {[%clk 0:02:50]} 8. O-O-O {[%clk 0:02:43]}  a5 {[%clk 0:02:47]} 9. Nge2 {[%clk 0:02:40]}  Nc6 {[%clk 0:02:46]} 10. f3 {[%clk 0:02:39]}  Bxc3 {[%clk 0:02:40]} 11. bxc3 {[%clk 0:02:33]}  e5 {[%clk 0:02:33]} 12. Bxf5 {[%clk 0:02:17]}  Bxf5 {[%clk 0:02:31]} 13. Qxf5 {[%clk 0:02:17]}  e4 {[%clk 0:02:32]} 14. Qg5 {[%clk 0:02:01]}  a4 {[%clk 0:02:22]} 15. Nf4 {[%clk 0:01:53]}  Qf7 {[%clk 0:02:14]} 16. Nd5 {[%clk 0:01:37]}  exf3 {[%clk 0:02:02]} 17. gxf3 {[%clk 0:01:27]}  Na5 {[%clk 0:02:02]} 18. Nxf6+ {[%clk 0:01:23]}  Qxf6 {[%clk 0:02:02]} 19. Qxf6 {[%clk 0:01:20]}  Rxf6 {[%clk 0:02:02]} 20. Rhf1 {[%clk 0:01:06]}  Nxc4 {[%clk 0:02:00]} 21. e4 {[%clk 0:00:59]}  Raf8 {[%clk 0:01:59]} 22. f4 {[%clk 0:00:52]}  Nxd2 {[%clk 0:01:58]} 23. Kxd2 {[%clk 0:00:50]}  Rxf4 {[%clk 0:01:58]} 24. Rxf4 {[%clk 0:00:51]}  Rxf4 {[%clk 0:01:58]} 25. Ke3 {[%clk 0:00:51]}  Rh4 {[%clk 0:01:58]} 26. Rd2 {[%clk 0:00:52]}  Rh3+ {[%clk 0:01:58]} 27. Kf4 {[%clk 0:00:49]}  Rxc3 {[%clk 0:01:58]} 28. Rb2 {[%clk 0:00:49]}  b6 {[%clk 0:01:54]} 29. e5 {[%clk 0:00:36]}  dxe5+ {[%clk 0:01:52]} 30. dxe5 {[%clk 0:00:37]}  Kf7 {[%clk 0:01:52]} 31. Kf5 {[%clk 0:00:36]}  g6+ {[%clk 0:01:51]} 32. Ke4 {[%clk 0:00:29]}  Ke6 {[%clk 0:01:51]} 33. Kd4 {[%clk 0:00:29]}  Rc5 {[%clk 0:01:48]} 34. Re2 {[%clk 0:00:25]}  Rd5+ {[%clk 0:01:48]} 35. Kc4 {[%clk 0:00:24]}  Rxe5 {[%clk 0:01:48]} 36. Rf2 {[%clk 0:00:24]}  b5+ {[%clk 0:01:42]} 37. Kb4 {[%clk 0:00:24]}  c6 {[%clk 0:01:42]} 38. Rd2 {[%clk 0:00:24]}  Re4+ {[%clk 0:01:41]} 39. Kc5 {[%clk 0:00:24]}  Rc4+ {[%clk 0:01:42]} 40. Kb6 {[%clk 0:00:24]}  Kf5 {[%clk 0:01:40]} 41. Rf2+ {[%clk 0:00:24]}  Kg4 {[%clk 0:01:38]} 42. Rg2+ {[%clk 0:00:25]}  Kh3 {[%clk 0:01:38]} 43. Re2 {[%clk 0:00:24]}  h5 {[%clk 0:01:36]} 44. Kc7 {[%clk 0:00:20]}  g5 {[%clk 0:01:36]} 45. Kd6 {[%clk 0:00:21]}  g4 {[%clk 0:01:36]} 46. Ke5 {[%clk 0:00:21]}  h4 {[%clk 0:01:36]} 47. Kf5 {[%clk 0:00:14]}  g3 {[%clk 0:01:37]} 48. hxg3 {[%clk 0:00:14]}  hxg3 {[%clk 0:01:37]} 49. Re7 {[%clk 0:00:15]}  g2 {[%clk 0:01:36]} 50. Rh7+ {[%clk 0:00:15]}  Rh4 {[%clk 0:01:36]} 51. Rg7 {[%clk 0:00:16]}  Kh2 {[%clk 0:01:35]} 52. Kg5 {[%clk 0:00:16]}  g1=Q+ {[%clk 0:01:35]} 53. Kxh4 {[%clk 0:00:16]}  Qxg7 {[%clk 0:01:35]} 54. Kh5 {[%clk 0:00:17]}  Kg3 {[%clk 0:01:34]} 55. a3 {[%clk 0:00:17]}  Kf4 {[%clk 0:01:34]} 56. Kh4 {[%clk 0:00:17]}  Qh6# {[%clk 0:01:33]} 0-1


[Site "https://www.chess.com"]

[Event "Titled Tuesday Blitz November 2 2021"]
[White "Gubajdullin, Alexei"]
[Black "Alavi, Sayed Javad"]
[WhiteFideId "4141202"]
[BlackFideId "12500607"]
[WhiteElo "2268"]
[BlackElo "2495"]
[Result "1-0"]
[Round "11"]
[TimeControl "180+1"]
[Date "2021.11.02"]
[WhiteClock "0:01:39"]
[BlackClock "0:00:27"]

1. d4 {[%clk 0:03:00]}  Nf6 {[%clk 0:02:58]} 2. Nf3 {[%clk 0:02:55]}  c6 {[%clk 0:02:58]} 3. Bf4 {[%clk 0:02:54]}  d5 {[%clk 0:02:59]} 4. e3 {[%clk 0:02:53]}  Bg4 {[%clk 0:02:58]} 5. c4 {[%clk 0:02:52]}  Bxf3 {[%clk 0:02:54]} 6. Qxf3 {[%clk 0:02:48]}  e6 {[%clk 0:02:53]} 7. Nc3 {[%clk 0:02:39]}  Bb4 {[%clk 0:02:52]} 8. Qd1 {[%clk 0:02:35]}  Bd6 {[%clk 0:01:54]} 9. Bxd6 {[%clk 0:02:28]}  Qxd6 {[%clk 0:01:55]} 10. Qb3 {[%clk 0:02:28]}  b6 {[%clk 0:01:47]} 11. g3 {[%clk 0:02:15]}  O-O {[%clk 0:01:46]} 12. Bg2 {[%clk 0:02:15]}  Nbd7 {[%clk 0:01:44]} 13. O-O {[%clk 0:02:12]}  Rab8 {[%clk 0:01:41]} 14. Rfc1 {[%clk 0:02:08]}  Rfc8 {[%clk 0:01:35]} 15. Rc2 {[%clk 0:02:07]}  a6 {[%clk 0:01:29]} 16. Rac1 {[%clk 0:02:05]}  b5 {[%clk 0:01:21]} 17. cxd5 {[%clk 0:02:01]}  exd5 {[%clk 0:01:14]} 18. Nxd5 {[%clk 0:01:57]}  c5 {[%clk 0:00:43]} 19. dxc5 {[%clk 0:01:53]}  Nxc5 {[%clk 0:00:26]} 20. Nxf6+ {[%clk 0:01:51]}  gxf6 {[%clk 0:00:27]} 21. Qb4 {[%clk 0:01:39]} 1-0


[Site "https://www.chess.com"]

[Event "Titled Tuesday Blitz November 2 2021"]
[White "Kaasen, Tor Fredrik"]
[Black "Mikhailovsky, Vladimir"]
[WhiteFideId "1516647"]
[BlackFideId "34105414"]
[WhiteElo "2349"]
[BlackElo "2402"]
[Result "0-1"]
[Round "11"]
[TimeControl "180+1"]
[Date "2021.11.02"]
[WhiteClock "0:00:07"]
[BlackClock "0:00:06"]

1. e4 {[%clk 0:03:00]}  Nf6 {[%clk 0:02:49]} 2. e5 {[%clk 0:03:00]}  Nd5 {[%clk 0:02:50]} 3. d4 {[%clk 0:03:01]}  d6 {[%clk 0:02:50]} 4. Nf3 {[%clk 0:03:02]}  dxe5 {[%clk 0:02:50]} 5. Nxe5 {[%clk 0:03:03]}  c6 {[%clk 0:02:49]} 6. Bd3 {[%clk 0:03:00]}  Nd7 {[%clk 0:02:49]} 7. Nf3 {[%clk 0:02:58]}  N7f6 {[%clk 0:02:50]} 8. O-O {[%clk 0:02:58]}  Bg4 {[%clk 0:02:49]} 9. Re1 {[%clk 0:02:58]}  e6 {[%clk 0:02:49]} 10. Nbd2 {[%clk 0:02:55]}  Bd6 {[%clk 0:02:44]} 11. Nf1 {[%clk 0:02:52]}  O-O {[%clk 0:02:43]} 12. Ng3 {[%clk 0:02:52]}  Nf4 {[%clk 0:02:43]} 13. Bf1 {[%clk 0:02:50]}  N4h5 {[%clk 0:02:24]} 14. h3 {[%clk 0:02:43]}  Nxg3 {[%clk 0:02:24]} 15. fxg3 {[%clk 0:02:43]}  Bh5 {[%clk 0:02:23]} 16. g4 {[%clk 0:02:43]}  Bg6 {[%clk 0:02:24]} 17. Be3 {[%clk 0:02:38]}  Nd5 {[%clk 0:02:21]} 18. Bf2 {[%clk 0:02:37]}  Qc7 {[%clk 0:02:03]} 19. c4 {[%clk 0:02:31]}  Nb4 {[%clk 0:02:03]} 20. Nh4 {[%clk 0:02:23]}  Bh2+ {[%clk 0:01:27]} 21. Kh1 {[%clk 0:02:23]}  Bg3 {[%clk 0:01:21]} 22. Bxg3 {[%clk 0:02:03]}  Qxg3 {[%clk 0:01:22]} 23. Nxg6 {[%clk 0:02:03]}  hxg6 {[%clk 0:01:18]} 24. Qd2 {[%clk 0:02:00]}  Na6 {[%clk 0:01:08]} 25. Re3 {[%clk 0:01:57]}  Qf4 {[%clk 0:01:08]} 26. Qc3 {[%clk 0:01:56]}  Rad8 {[%clk 0:01:06]} 27. Rd1 {[%clk 0:01:56]}  Nc5 {[%clk 0:00:59]} 28. Rf3 {[%clk 0:01:50]}  Qg5 {[%clk 0:00:44]} 29. Qc2 {[%clk 0:01:49]}  Nd7 {[%clk 0:00:39]} 30. b4 {[%clk 0:01:40]}  Nf6 {[%clk 0:00:37]} 31. Rfd3 {[%clk 0:01:17]}  Rd7 {[%clk 0:00:37]} 32. Qd2 {[%clk 0:01:16]}  Qxd2 {[%clk 0:00:21]} 33. R1xd2 {[%clk 0:01:17]}  Rfd8 {[%clk 0:00:22]} 34. Kg1 {[%clk 0:01:11]}  Ne4 {[%clk 0:00:22]} 35. Rd1 {[%clk 0:01:11]}  g5 {[%clk 0:00:16]} 36. g3 {[%clk 0:01:11]}  g6 {[%clk 0:00:15]} 37. Bg2 {[%clk 0:01:11]}  Nd6 {[%clk 0:00:14]} 38. Rc1 {[%clk 0:00:43]}  Kg7 {[%clk 0:00:14]} 39. Kf2 {[%clk 0:00:43]}  Nc8 {[%clk 0:00:14]} 40. Ke3 {[%clk 0:00:43]}  Nb6 {[%clk 0:00:12]} 41. a3 {[%clk 0:00:42]}  Nc8 {[%clk 0:00:11]} 42. a4 {[%clk 0:00:40]}  Ne7 {[%clk 0:00:11]} 43. Rcd1 {[%clk 0:00:40]}  f5 {[%clk 0:00:11]} 44. Bf3 {[%clk 0:00:39]}  Kf6 {[%clk 0:00:11]} 45. h4 {[%clk 0:00:39]}  gxh4 {[%clk 0:00:10]} 46. gxh4 {[%clk 0:00:40]}  g5 {[%clk 0:00:10]} 47. h5 {[%clk 0:00:34]}  Nc8 {[%clk 0:00:09]} 48. d5 {[%clk 0:00:33]}  cxd5 {[%clk 0:00:08]} 49. cxd5 {[%clk 0:00:33]}  e5 {[%clk 0:00:05]} 50. gxf5 {[%clk 0:00:33]}  Nd6 {[%clk 0:00:05]} 51. Be4 {[%clk 0:00:32]}  Nc4+ {[%clk 0:00:04]} 52. Ke2 {[%clk 0:00:24]}  Nb2 {[%clk 0:00:05]} 53. Rc3 {[%clk 0:00:24]}  Nxd1 {[%clk 0:00:05]} 54. Kxd1 {[%clk 0:00:24]}  Rh8 {[%clk 0:00:06]} 55. Rh3 {[%clk 0:00:20]}  g4 {[%clk 0:00:05]} 56. Rh2 {[%clk 0:00:19]}  Kg5 {[%clk 0:00:06]} 57. f6 {[%clk 0:00:16]}  Kxf6 {[%clk 0:00:06]} 58. Rf2+ {[%clk 0:00:16]}  Kg5 {[%clk 0:00:06]} 59. Rf5+ {[%clk 0:00:17]}  Kh4 {[%clk 0:00:07]} 60. Rxe5 {[%clk 0:00:17]}  Rxh5 {[%clk 0:00:07]} 61. Re8 {[%clk 0:00:17]}  g3 {[%clk 0:00:06]} 62. Ke2 {[%clk 0:00:17]}  Rd6 {[%clk 0:00:04]} 63. Kf1 {[%clk 0:00:13]}  Kg5 {[%clk 0:00:03]} 64. Kg2 {[%clk 0:00:13]}  Kf4 {[%clk 0:00:03]} 65. Bg6 {[%clk 0:00:08]}  Rh2+ {[%clk 0:00:04]} 66. Kg1 {[%clk 0:00:08]}  Rb2 {[%clk 0:00:05]} 67. Rf8+ {[%clk 0:00:08]}  Ke3 {[%clk 0:00:05]} 68. Bh5 {[%clk 0:00:07]}  Rxd5 {[%clk 0:00:05]} 69. Rf3+ {[%clk 0:00:07]}  Ke4 {[%clk 0:00:05]} 70. Rxg3 {[%clk 0:00:07]}  Rxh5 {[%clk 0:00:05]} 71. Rg4+ {[%clk 0:00:07]}  Kf3 {[%clk 0:00:06]} 0-1


[Site "https://www.chess.com"]

[Event "Titled Tuesday Blitz November 2 2021"]
[White "Karpeshov, Oleg"]
[Black "Erdogdu, Mert"]
[WhiteFideId "4106814"]
[BlackFideId "6301495"]
[WhiteElo "2354"]
[BlackElo "2485"]
[Result "0-1"]
[Round "11"]
[TimeControl "180+1"]
[Date "2021.11.02"]
[WhiteClock "0:01:34"]
[BlackClock "0:00:35"]

1. d4 {[%clk 0:03:00]}  d5 {[%clk 0:02:59]} 2. c4 {[%clk 0:03:00]}  e6 {[%clk 0:02:59]} 3. Nc3 {[%clk 0:02:59]}  c5 {[%clk 0:02:59]} 4. e3 {[%clk 0:02:57]}  Nf6 {[%clk 0:02:59]} 5. Nf3 {[%clk 0:02:57]}  a6 {[%clk 0:02:59]} 6. cxd5 {[%clk 0:02:54]}  exd5 {[%clk 0:02:58]} 7. Bd3 {[%clk 0:02:51]}  Nc6 {[%clk 0:02:57]} 8. O-O {[%clk 0:02:49]}  Bd6 {[%clk 0:02:55]} 9. dxc5 {[%clk 0:02:49]}  Bxc5 {[%clk 0:02:55]} 10. a3 {[%clk 0:02:49]}  O-O {[%clk 0:02:54]} 11. b4 {[%clk 0:02:49]}  Ba7 {[%clk 0:02:53]} 12. Bb2 {[%clk 0:02:49]}  Bg4 {[%clk 0:02:52]} 13. Ne2 {[%clk 0:02:48]}  Qd6 {[%clk 0:02:47]} 14. Ng3 {[%clk 0:02:43]}  Rad8 {[%clk 0:02:43]} 15. h3 {[%clk 0:02:43]}  Bc8 {[%clk 0:02:37]} 16. Qc2 {[%clk 0:02:35]}  h6 {[%clk 0:02:26]} 17. Rfd1 {[%clk 0:02:30]}  Rfe8 {[%clk 0:02:23]} 18. Rac1 {[%clk 0:02:27]}  Rxe3 {[%clk 0:01:47]} 19. Bxf6 {[%clk 0:02:15]}  Rxf3 {[%clk 0:01:46]} 20. Bh7+ {[%clk 0:01:37]}  Kh8 {[%clk 0:01:26]} 21. Ne4 {[%clk 0:01:36]}  Rxf2 {[%clk 0:00:43]} 22. Nxd6 {[%clk 0:01:36]}  Rxc2+ {[%clk 0:00:43]} 23. Kh1 {[%clk 0:01:36]}  Rxc1 {[%clk 0:00:43]} 24. Nxf7+ {[%clk 0:01:35]}  Kxh7 {[%clk 0:00:41]} 25. Rxc1 {[%clk 0:01:34]}  Rf8 {[%clk 0:00:35]} 26. Nd6 {[%clk 0:01:34]}  gxf6 {[%clk 0:00:35]} 0-1


[Site "https://www.chess.com"]

[Event "Titled Tuesday Blitz November 2 2021"]
[White "Martinez Alcantara, Jose Eduardo"]
[Black "Gritsenko, Nikolai"]
[WhiteFideId "3805662"]
[BlackFideId "14112493"]
[WhiteElo "2690"]
[BlackElo "2389"]
[Result "1-0"]
[Round "11"]
[TimeControl "180+1"]
[Date "2021.11.02"]
[WhiteClock "0:01:50"]
[BlackClock "0:00:02"]

1. e4 {[%clk 0:03:00]}  e5 {[%clk 0:02:58]} 2. Nf3 {[%clk 0:03:01]}  d6 {[%clk 0:02:58]} 3. d4 {[%clk 0:03:00]}  exd4 {[%clk 0:02:58]} 4. Nxd4 {[%clk 0:03:00]}  Nf6 {[%clk 0:02:58]} 5. Nc3 {[%clk 0:03:01]}  g6 {[%clk 0:02:59]} 6. f3 {[%clk 0:03:00]}  Bg7 {[%clk 0:02:59]} 7. Be3 {[%clk 0:03:01]}  O-O {[%clk 0:02:57]} 8. Qd2 {[%clk 0:03:02]}  d5 {[%clk 0:02:42]} 9. e5 {[%clk 0:03:01]}  Nfd7 {[%clk 0:02:37]} 10. e6 {[%clk 0:03:01]}  Nb6 {[%clk 0:02:06]} 11. exf7+ {[%clk 0:02:57]}  Rxf7 {[%clk 0:02:06]} 12. O-O-O {[%clk 0:02:55]}  Nc6 {[%clk 0:02:00]} 13. Bb5 {[%clk 0:02:53]}  Bd7 {[%clk 0:01:52]} 14. Rhe1 {[%clk 0:02:52]}  Ne5 {[%clk 0:01:07]} 15. Bg5 {[%clk 0:02:43]}  Qc8 {[%clk 0:00:53]} 16. Bxd7 {[%clk 0:02:43]}  Qxd7 {[%clk 0:00:52]} 17. Qe2 {[%clk 0:02:41]}  h6 {[%clk 0:00:39]} 18. Bh4 {[%clk 0:02:39]}  Re8 {[%clk 0:00:34]} 19. Kb1 {[%clk 0:02:37]}  a6 {[%clk 0:00:31]} 20. g3 {[%clk 0:02:29]}  Rff8 {[%clk 0:00:31]} 21. Qg2 {[%clk 0:02:19]}  Nec4 {[%clk 0:00:29]} 22. g4 {[%clk 0:02:05]}  c5 {[%clk 0:00:26]} 23. Nb3 {[%clk 0:02:04]}  Nxb2 {[%clk 0:00:23]} 24. Qd2 {[%clk 0:01:47]}  N2c4 {[%clk 0:00:18]} 25. Qd3 {[%clk 0:01:46]}  Na3+ {[%clk 0:00:16]} 26. Kc1 {[%clk 0:01:46]}  c4 {[%clk 0:00:15]} 27. Qxg6 {[%clk 0:01:47]}  cxb3 {[%clk 0:00:15]} 28. axb3 {[%clk 0:01:48]}  Qc6 {[%clk 0:00:12]} 29. Qxc6 {[%clk 0:01:42]}  bxc6 {[%clk 0:00:12]} 30. Na2 {[%clk 0:01:43]}  Rxe1 {[%clk 0:00:10]} 31. Rxe1 {[%clk 0:01:44]}  Rxf3 {[%clk 0:00:10]} 32. Nb4 {[%clk 0:01:45]}  Bc3 {[%clk 0:00:08]} 33. Re8+ {[%clk 0:01:45]}  Kf7 {[%clk 0:00:08]} 34. Re7+ {[%clk 0:01:46]}  Kf8 {[%clk 0:00:06]} 35. Nd3 {[%clk 0:01:46]}  Rf1+ {[%clk 0:00:06]} 36. Ne1 {[%clk 0:01:47]}  Nb5 {[%clk 0:00:05]} 37. Kd1 {[%clk 0:01:46]}  Bxe1 {[%clk 0:00:05]} 38. Rxe1 {[%clk 0:01:46]}  Rxe1+ {[%clk 0:00:05]} 39. Bxe1 {[%clk 0:01:47]}  c5 {[%clk 0:00:04]} 40. Bf2 {[%clk 0:01:48]}  d4 {[%clk 0:00:05]} 41. Kd2 {[%clk 0:01:49]}  Ke7 {[%clk 0:00:05]} 42. Kd3 {[%clk 0:01:49]}  Kd6 {[%clk 0:00:05]} 43. Ke4 {[%clk 0:01:49]}  a5 {[%clk 0:00:05]} 44. Bg3+ {[%clk 0:01:49]}  Kc6 {[%clk 0:00:04]} 45. Bf4 {[%clk 0:01:50]}  Na3 {[%clk 0:00:03]} 46. Bxh6 {[%clk 0:01:49]}  Nxc2 {[%clk 0:00:03]} 47. Bd2 {[%clk 0:01:49]}  Nd5 {[%clk 0:00:02]} 48. g5 {[%clk 0:01:49]}  a4 {[%clk 0:00:02]} 49. bxa4 {[%clk 0:01:49]}  c4 {[%clk 0:00:02]} 50. g6 {[%clk 0:01:50]}  c3 {[%clk 0:00:02]} 51. Bg5 {[%clk 0:01:50]} 1-0


[Site "https://www.chess.com"]

[Event "Titled Tuesday Blitz November 2 2021"]
[White "Nesterov, Arseniy"]
[Black "Rostovtsev, Dmitry"]
[WhiteFideId "24198455"]
[BlackFideId "34278320"]
[WhiteElo "2494"]
[BlackElo "2294"]
[Result "1-0"]
[Round "11"]
[TimeControl "180+1"]
[Date "2021.11.02"]
[WhiteClock "0:00:33"]
[BlackClock "0:00:09"]

1. d4 {[%clk 0:03:00]}  Nf6 {[%clk 0:02:56]} 2. c4 {[%clk 0:03:00]}  e6 {[%clk 0:02:50]} 3. Nf3 {[%clk 0:03:00]}  b6 {[%clk 0:02:49]} 4. g3 {[%clk 0:03:00]}  Ba6 {[%clk 0:02:49]} 5. Qc2 {[%clk 0:03:00]}  Bb7 {[%clk 0:02:43]} 6. Bg2 {[%clk 0:03:00]}  c5 {[%clk 0:02:37]} 7. O-O {[%clk 0:02:56]}  cxd4 {[%clk 0:02:32]} 8. Nxd4 {[%clk 0:02:57]}  Bxg2 {[%clk 0:02:32]} 9. Kxg2 {[%clk 0:02:58]}  Qc8 {[%clk 0:02:33]} 10. Nd2 {[%clk 0:02:55]}  Be7 {[%clk 0:02:30]} 11. b3 {[%clk 0:02:55]}  O-O {[%clk 0:02:24]} 12. Bb2 {[%clk 0:02:55]}  Nc6 {[%clk 0:02:19]} 13. N2f3 {[%clk 0:02:53]}  d5 {[%clk 0:02:10]} 14. Nxc6 {[%clk 0:02:29]}  Qxc6 {[%clk 0:02:09]} 15. Rac1 {[%clk 0:02:24]}  Rac8 {[%clk 0:01:59]} 16. Qd3 {[%clk 0:02:04]}  Qb7 {[%clk 0:01:16]} 17. Bxf6 {[%clk 0:01:43]}  dxc4 {[%clk 0:01:08]} 18. Rxc4 {[%clk 0:01:44]}  Bxf6 {[%clk 0:01:07]} 19. Rfc1 {[%clk 0:01:44]}  h6 {[%clk 0:01:00]} 20. h4 {[%clk 0:01:37]}  Rfd8 {[%clk 0:00:47]} 21. Qc2 {[%clk 0:01:35]}  Rxc4 {[%clk 0:00:43]} 22. Qxc4 {[%clk 0:01:36]}  h5 {[%clk 0:00:37]} 23. Qf4 {[%clk 0:01:16]}  Rc8 {[%clk 0:00:32]} 24. Rxc8+ {[%clk 0:01:08]}  Qxc8 {[%clk 0:00:33]} 25. Qe4 {[%clk 0:01:08]}  g6 {[%clk 0:00:30]} 26. Nd2 {[%clk 0:01:07]}  Kg7 {[%clk 0:00:24]} 27. Nc4 {[%clk 0:00:57]}  Qc5 {[%clk 0:00:23]} 28. a4 {[%clk 0:00:44]}  b5 {[%clk 0:00:19]} 29. axb5 {[%clk 0:00:43]}  Qxb5 {[%clk 0:00:19]} 30. Nd6 {[%clk 0:00:40]}  Qd7 {[%clk 0:00:12]} 31. Qd3 {[%clk 0:00:34]}  Be5 {[%clk 0:00:09]} 32. Nf5+ {[%clk 0:00:33]} 1-0


[Site "https://www.chess.com"]